{"text_format":"1","workbook":"xlsx","n_sheets":1,"sheets":["Лист1"],"not_rendered":{"charts":0,"images":2,"macros":1,"external_links":0,"defined_names":1,"comments":0,"pivot_tables":0},"unopened":[],"bounds":{"document_bytes":16777216,"sheet_cells":100000,"rows_first":2000,"rows_last":500,"rows_between":2000,"halvings":0,"cell_chars":16384,"cell_head_chars":4096},"cells_cut":0,"cells_raw":0,"read":"whole","date_system":"1900"}

{"sheet":"Лист1","index":0,"n_rows":56,"n_cols":25,"rows_kept":56,"cut":false,"hidden":false,"merged":[[5,18,7,18],[0,9,0,10],[2,13,2,17],[5,14,5,15],[5,16,7,16],[5,17,7,17]]}
[null,null,null,null,"ДНЕВНОЙ ЗАБОРНЫЙ ЛИСТ  №",null,null,null,null,"29   Июля"]
[]
["Папоротник остр",null,"на отпуск готовых изделий из цеха в магазин \"Кулинария\"",null,null,null,null,null,null,null,null,null,null,"Оценка качества выпущенной продукции"]
[null,null,"Директор _________________                  Бухгалтер _________________________",null,null,null,null,null,null,null,null,null,null,null,null,null,null,null,null,null,null,"Прайс"]
[null,null,null,null,null,null,null,null,null,null,null,null,null,null,null,null,null,null,null,null,null,"Наименование ","вес","цена"]
[null,null,null,null,null,null,11,12,13,15,16,null,null,null,null,null,"Доброкачественность","Правильность кулинароной обработки","Санитарное состояние ухни",null,null,"М кальмар",1,280,"шт"]
[null,null,null,null,"ед.из.","Цена, руб","час","час","час","час","час",null,"Итого за ","день",null,null,null,null,null,null,null,"М соя",1,200,"кг"]
["№ п/п",null,"Товар",null,null,null,null,null,null,null,null,"Возврат","Кол-во","Сумма",null,null,null,null,null,null,null,"Фунчеза",1,200,"кг"]
[1,null,"Печень жар",{"$f":"VLOOKUP($C9,$V$6:$X$103,2,0)","v":1},{"$f":"VLOOKUP($C9,$V$6:$Y$90,4,0)","v":"кг"},{"$f":"VLOOKUP($C9,$V$6:$X$90,3,0)","v":550},null,null,null,null,null,null,{"$f":"G9+J9+K9+H9","v":0},{"$f":"(K9+J9+I9+H9+G9)*F9","v":0},2.2000000000000002,{"$f":"O9*F9-N9","v":1210},"хор","хор","хор",null,null,"Хе сельдь",1,280,"кг"]
[2,"00:00:00",null,{"$f":"VLOOKUP($C10,$V$6:$X$103,2,0)","v":{"$error":"#N/A"}},{"$f":"VLOOKUP($C10,$V$6:$Y$90,4,0)","v":{"$error":"#N/A"}},{"$f":"VLOOKUP($C10,$V$6:$X$90,3,0)","v":{"$error":"#N/A"}},null,null,null,null,null,null,0,{"$error":"#N/A"},3.2,{"$error":"#N/A"},"хор","хор","хор",null,null,"Нежность",1,280,"кг"]
[3,null,null,{"$error":"#N/A"},{"$error":"#N/A"},{"$error":"#N/A"},null,null,null,null,null,null,0,{"$error":"#N/A"},2,{"$error":"#N/A"},"хор","хор","хор",null,null,"Айсберг",1,380,"кг"]
[4,null,null,{"$error":"#N/A"},{"$error":"#N/A"},{"$error":"#N/A"},null,null,null,null,null,null,0,{"$error":"#N/A"},null,null,"хор","хор","хор",null,null,"Кап остр",1,180,"кг"]
[5,null,null,{"$error":"#N/A"},{"$error":"#N/A"},{"$error":"#N/A"},null,null,null,null,null,null,0,{"$error":"#N/A"},null,null,"хор","хор","хор",null,null,"Витаминный",1,220,"кг"]
[6,null,null,{"$error":"#N/A"},{"$error":"#N/A"},{"$error":"#N/A"},null,null,null,null,null,null,0,{"$error":"#N/A"},null,null,"хор","хор","хор",null,null,"Оливье",1,320,"кг"]
[7,null,null,{"$error":"#N/A"},{"$error":"#N/A"},{"$error":"#N/A"},null,null,null,null,null,null,0,{"$error":"#N/A"},1.7,{"$error":"#N/A"},"хор","хор","хор",null,null,"Папоротник остр",1,290,"кг"]
[8,null,null,{"$error":"#N/A"},{"$error":"#N/A"},{"$error":"#N/A"},null,null,null,null,null,null,0,{"$error":"#N/A"},1.9,{"$error":"#N/A"},"хор","хор","хор",null,null,"Шуба",1,270,"кг"]
[9,null,null,{"$error":"#N/A"},{"$error":"#N/A"},{"$error":"#N/A"},null,null,null,null,null,null,0,{"$error":"#N/A"},null,null,"хор","хор","хор",null,null,"Камбала",1,300,"кг"]
[10,null,null,{"$error":"#N/A"},{"$error":"#N/A"},{"$error":"#N/A"},null,null,null,null,null,null,0,{"$error":"#N/A"},1.4,{"$error":"#N/A"},"хор","хор","хор",null,null,"Блины",1,230,"кг"]
[11,null,null,{"$error":"#N/A"},{"$error":"#N/A"},{"$error":"#N/A"},null,null,null,null,null,null,0,{"$error":"#N/A"},null,null,"хор","хор","хор",null,null,"Фунчеза с мяс",1,380,"кг"]
[12,null,null,{"$error":"#N/A"},{"$error":"#N/A"},{"$error":"#N/A"},null,null,null,null,null,null,0,{"$error":"#N/A"},null,null,"хор","хор","хор",null,null,"Рулада",1,600,"кг"]
[13,null,null,{"$error":"#N/A"},{"$error":"#N/A"},{"$error":"#N/A"},null,null,null,null,null,null,0,{"$error":"#N/A"},null,null,"хор","хор","хор",null,null,"Перец фарш",1,350,"кг"]
[14,null,null,{"$error":"#N/A"},{"$error":"#N/A"},{"$error":"#N/A"},null,null,null,null,null,null,0,{"$error":"#N/A"},null,null,"хор","хор","хор",null,null,"Печень жар",1,550,"кг"]
[15,null,null,{"$error":"#N/A"},{"$error":"#N/A"},{"$error":"#N/A"},null,null,null,null,null,null,0,{"$error":"#N/A"},null,null,"хор","хор","хор",null,null,"Кальмар остр",1,500,"кг"]
[16,null,null,{"$error":"#N/A"},{"$error":"#N/A"},{"$error":"#N/A"},null,null,null,null,null,null,0,{"$error":"#N/A"},null,null,"хор","хор","хор",null,null,"Котлеты ",1,40,"кг"]
[17,null,null,{"$error":"#N/A"},{"$error":"#N/A"},{"$error":"#N/A"},null,null,null,null,null,null,0,{"$error":"#N/A"},null,null,"хор","хор","хор",null,null,"Сырники",1,25,"кг"]
[18,null,null,{"$error":"#N/A"},{"$error":"#N/A"},{"$error":"#N/A"},null,null,null,null,null,null,0,{"$error":"#N/A"},null,null,"хор","хор","хор",null,null,"Пирожки лив",7.4999999999999997E-2,19,"шт"]
[19,null,null,{"$error":"#N/A"},{"$error":"#N/A"},{"$error":"#N/A"},null,null,null,null,null,null,0,{"$error":"#N/A"},null,null,"хор","хор","хор",null,null,"Пирожки карт",7.4999999999999997E-2,17,"шт"]
[20,null,null,{"$error":"#N/A"},{"$error":"#N/A"},{"$error":"#N/A"},null,null,null,null,null,null,0,{"$error":"#N/A"},null,null,"хор","хор","хор",null,null,"Пирожки кап",7.4999999999999997E-2,17,"шт"]
[21,null,null,{"$error":"#N/A"},{"$error":"#N/A"},{"$error":"#N/A"},null,null,null,null,null,null,0,{"$error":"#N/A"},null,null,"хор","хор","хор",null,null,"Пирожки яйцо",7.4999999999999997E-2,19,"шт"]
[22,null,null,{"$error":"#N/A"},{"$error":"#N/A"},{"$error":"#N/A"},null,null,null,null,null,null,0,{"$error":"#N/A"},null,null,"хор","хор","хор",null,null,"Беляши",0.12,38,"шт"]
[23,null,null,{"$error":"#N/A"},{"$error":"#N/A"},{"$error":"#N/A"},null,null,null,null,null,null,0,{"$error":"#N/A"},null,null,"хор","хор","хор",null,null,"Чебуреки",0.12,38,"шт"]
[24,null,null,{"$error":"#N/A"},{"$error":"#N/A"},{"$error":"#N/A"},null,null,null,null,null,null,0,{"$error":"#N/A"},null,null,"хор","хор","хор",null,null,"Пирожки печ лив",7.4999999999999997E-2,19,"шт"]
[25,null,null,{"$error":"#N/A"},{"$error":"#N/A"},{"$error":"#N/A"},null,null,null,null,null,null,0,{"$error":"#N/A"},null,null,"хор","хор","хор",null,null,"Пирожки печ кап",7.4999999999999997E-2,17,"шт"]
[26,null,null,{"$error":"#N/A"},{"$error":"#N/A"},{"$error":"#N/A"},null,null,null,null,null,null,0,{"$error":"#N/A"},null,null,"хор","хор","хор",null,null,"Пирожки печ яйцо",7.4999999999999997E-2,19,"шт"]
[27,null,null,{"$error":"#N/A"},{"$error":"#N/A"},{"$error":"#N/A"},null,null,null,null,null,null,0,{"$error":"#N/A"},null,null,"хор","хор","хор",null,null,"Кулебяка",1,25,"шт"]
[28,null,null,{"$error":"#N/A"},{"$error":"#N/A"},{"$error":"#N/A"},null,null,null,null,null,null,0,{"$error":"#N/A"},null,null,"хор","хор","хор",null,null,"Гамбургеры",1,45,"шт"]
[29,null,null,{"$error":"#N/A"},{"$error":"#N/A"},{"$error":"#N/A"},null,null,null,null,null,null,0,{"$error":"#N/A"},null,null,"хор","хор","хор",null,null,"Хот Доги",0.17,40,"шт"]
[30,null,null,{"$error":"#N/A"},{"$error":"#N/A"},{"$error":"#N/A"},null,null,null,null,null,null,0,{"$error":"#N/A"},null,null,"хор","хор","хор",null,null,"Сосиски в т",0.09,25,"шт"]
[31,null,null,{"$error":"#N/A"},{"$error":"#N/A"},{"$error":"#N/A"},null,null,null,null,null,null,0,{"$error":"#N/A"},null,null,"хор","хор","хор",null,null,"Котлеты в т",0.1,28,"шт"]
[32,null,null,{"$error":"#N/A"},{"$error":"#N/A"},{"$error":"#N/A"},null,null,null,null,null,null,0,{"$error":"#N/A"},null,null,"хор","хор","хор",null,null,"Пицца",0.21,60,"шт"]
[33,null,null,{"$error":"#N/A"},{"$error":"#N/A"},{"$error":"#N/A"},null,null,null,null,null,null,0,{"$error":"#N/A"},null,null,"хор","хор","хор",null,null,"Булочки сах",0.13,15,"шт"]
[34,null,null,{"$error":"#N/A"},{"$error":"#N/A"},{"$error":"#N/A"},null,null,null,null,null,null,0,{"$error":"#N/A"},null,null,"хор","хор","хор",null,null,"Булочки пов",0.13,16,"шт"]
[35,null,null,{"$error":"#N/A"},{"$error":"#N/A"},{"$error":"#N/A"},null,null,null,null,null,null,0,{"$error":"#N/A"},null,null,"хор","хор","хор",null,null,"Булочки сгущ",0.13,19,"шт"]
[36,null,null,{"$error":"#N/A"},{"$error":"#N/A"},{"$error":"#N/A"},null,null,null,null,null,null,0,{"$error":"#N/A"},null,null,"хор","хор","хор",null,null,"Булочки сыр изюм",0.13,25,"шт"]
[37,null,null,{"$error":"#N/A"},{"$error":"#N/A"},{"$error":"#N/A"},null,null,null,null,null,null,0,{"$error":"#N/A"},null,null,"хор","хор","хор",null,null,"Булочки лимон",1,25,"шт"]
[38,null,null,{"$error":"#N/A"},{"$error":"#N/A"},{"$error":"#N/A"},null,null,null,null,null,null,0,{"$error":"#N/A"},null,null,"хор","хор","хор",null,null,"Рулеты",0.3,40,"кг"]
[39,null,null,{"$error":"#N/A"},{"$error":"#N/A"},{"$error":"#N/A"},null,null,null,null,null,null,0,{"$error":"#N/A"},null,null,"хор","хор","хор",null,null,"Бисквит с ананас",1,290,"кг"]
[40,null,null,{"$error":"#N/A"},{"$error":"#N/A"},{"$error":"#N/A"},null,null,null,null,null,null,0,{"$error":"#N/A"},null,null,"хор","хор","хор",null,null,"Слойка",1,240,"кг"]
[41,null,null,{"$error":"#N/A"},{"$error":"#N/A"},{"$error":"#N/A"},null,null,null,null,null,null,0,{"$error":"#N/A"},null,null,"хор","хор","хор",null,null,"Рогалики",1,250,"кг"]
[42,null,null,{"$error":"#N/A"},{"$error":"#N/A"},{"$error":"#N/A"},null,null,null,null,null,null,0,{"$error":"#N/A"},null,null,"хор","хор","хор",null,null,"Хворост",1,400,"кг"]
[43,null,null,{"$error":"#N/A"},{"$error":"#N/A"},{"$error":"#N/A"},null,null,null,null,null,null,0,{"$error":"#N/A"},null,null,"хор","хор","хор",null,null,"Трубочки",1,232,"кг"]
[44,null,null,{"$error":"#N/A"},{"$error":"#N/A"},{"$error":"#N/A"},null,null,null,null,null,null,0,{"$error":"#N/A"},null,null,"хор","хор","хор",null,null,"Эклеры",1,300,"кг"]
[45,null,null,{"$error":"#N/A"},{"$error":"#N/A"},{"$error":"#N/A"},null,null,null,null,null,null,0,{"$error":"#N/A"},null,null,"хор","хор","хор"]
[46,null,null,{"$error":"#N/A"},{"$error":"#N/A"},{"$error":"#N/A"},null,null,null,null,null,null,0,{"$error":"#N/A"},null,null,"хор","хор","хор"]
[47,null,null,{"$error":"#N/A"},{"$error":"#N/A"},{"$error":"#N/A"},null,null,null,null,null,null,0,{"$error":"#N/A"},null,null,"хор","хор","хор"]
[null,null,null,null,null,null,null,null,null,null,null,null,null,{"$f":"SUM(N9:N55)","v":{"$error":"#N/A"}},null,{"$f":"SUM(P9:P54)","v":{"$error":"#N/A"}}]